[Event "Titled Tuesday Blitz July 27 2021"]
[White "Kretov, Evgenij"]
[Black "Seletsky, Grigory"]
[WhiteFideId "4167821"]
[BlackFideId "14112191"]
[WhiteElo "2400"]
[BlackElo "2492"]
[Result "1-0"]
[Round "07"]
[TimeControl "180+1"]
[Date "2021.07.27"]
[WhiteClock "0:00:14"]
[BlackClock "0:00:03"]

1. d4 {[%clk 0:03:00]}  d6 {[%clk 0:02:58]} 2. Nf3 {[%clk 0:02:59]}  Nf6 {[%clk 0:02:58]} 3. c4 {[%clk 0:03:00]}  Bg4 {[%clk 0:02:56]} 4. Nc3 {[%clk 0:03:00]}  Bxf3 {[%clk 0:02:56]} 5. gxf3 {[%clk 0:03:00]}  c6 {[%clk 0:02:51]} 6. b3 {[%clk 0:02:57]}  d5 {[%clk 0:02:49]} 7. Bb2 {[%clk 0:02:55]}  e6 {[%clk 0:02:49]} 8. e3 {[%clk 0:02:53]}  Be7 {[%clk 0:02:48]} 9. Bd3 {[%clk 0:02:53]}  O-O {[%clk 0:02:48]} 10. O-O {[%clk 0:02:53]}  Nbd7 {[%clk 0:02:49]} 11. f4 {[%clk 0:02:53]}  a6 {[%clk 0:02:45]} 12. c5 {[%clk 0:02:52]}  Ne8 {[%clk 0:02:38]} 13. Kh1 {[%clk 0:02:51]}  f5 {[%clk 0:02:38]} 14. Rg1 {[%clk 0:02:50]}  g6 {[%clk 0:02:35]} 15. b4 {[%clk 0:02:49]}  Ng7 {[%clk 0:02:34]} 16. a4 {[%clk 0:02:48]}  Nf6 {[%clk 0:02:34]} 17. f3 {[%clk 0:02:46]}  Nfh5 {[%clk 0:02:24]} 18. Qe2 {[%clk 0:02:40]}  Qe8 {[%clk 0:02:21]} 19. b5 {[%clk 0:02:37]}  a5 {[%clk 0:02:20]} 20. Rg2 {[%clk 0:02:35]}  Bd8 {[%clk 0:02:19]} 21. Rag1 {[%clk 0:02:33]}  Qe7 {[%clk 0:02:17]} 22. Bc1 {[%clk 0:02:29]}  Bc7 {[%clk 0:02:18]} 23. Bd2 {[%clk 0:02:28]}  Rf7 {[%clk 0:01:57]} 24. Nd1 {[%clk 0:02:28]}  Qe8 {[%clk 0:01:53]} 25. Nf2 {[%clk 0:02:27]}  b6 {[%clk 0:01:52]} 26. bxc6 {[%clk 0:02:26]}  Qxc6 {[%clk 0:01:51]} 27. Bb5 {[%clk 0:02:26]}  Qb7 {[%clk 0:01:50]} 28. Nd3 {[%clk 0:02:24]}  bxc5 {[%clk 0:01:47]} 29. dxc5 {[%clk 0:02:20]}  Rd8 {[%clk 0:01:42]} 30. Bc3 {[%clk 0:02:20]}  Qb8 {[%clk 0:01:32]} 31. Bd4 {[%clk 0:02:19]}  Nf6 {[%clk 0:01:27]} 32. Qb2 {[%clk 0:02:12]}  Nfh5 {[%clk 0:01:26]} 33. Qc3 {[%clk 0:02:09]}  Qc8 {[%clk 0:01:22]} 34. Rb2 {[%clk 0:02:05]}  Rdf8 {[%clk 0:01:18]} 35. Rgb1 {[%clk 0:02:02]}  Qd8 {[%clk 0:01:16]} 36. Be5 {[%clk 0:01:58]}  Qh4 {[%clk 0:01:12]} 37. Rg1 {[%clk 0:01:53]}  Qh3 {[%clk 0:01:09]} 38. Rf2 {[%clk 0:01:50]}  Bxe5 {[%clk 0:00:52]} 39. Nxe5 {[%clk 0:01:49]}  Rc7 {[%clk 0:00:49]} 40. c6 {[%clk 0:01:43]}  Rfc8 {[%clk 0:00:49]} 41. Qxa5 {[%clk 0:01:42]}  d4 {[%clk 0:00:50]} 42. Qd2 {[%clk 0:01:34]}  dxe3 {[%clk 0:00:50]} 43. Qxe3 {[%clk 0:01:34]}  Qh4 {[%clk 0:00:49]} 44. Nd3 {[%clk 0:01:34]}  Rxc6 {[%clk 0:00:46]} 45. Bxc6 {[%clk 0:01:34]}  Rxc6 {[%clk 0:00:46]} 46. Qd4 {[%clk 0:01:33]}  Rc8 {[%clk 0:00:39]} 47. a5 {[%clk 0:01:32]}  Rd8 {[%clk 0:00:40]} 48. Qc4 {[%clk 0:01:29]}  Qf6 {[%clk 0:00:37]} 49. Ne5 {[%clk 0:01:26]}  Qh4 {[%clk 0:00:36]} 50. Rc2 {[%clk 0:01:09]}  Nxf4 {[%clk 0:00:28]} 51. a6 {[%clk 0:01:08]}  Ngh5 {[%clk 0:00:24]} 52. a7 {[%clk 0:00:42]}  Kg7 {[%clk 0:00:17]} 53. Qc7+ {[%clk 0:00:29]}  Kg8 {[%clk 0:00:16]} 54. Qf7+ {[%clk 0:00:28]}  Kh8 {[%clk 0:00:14]} 55. Qb7 {[%clk 0:00:18]}  Qf6 {[%clk 0:00:06]} 56. Qc7 {[%clk 0:00:17]}  Rg8 {[%clk 0:00:04]} 57. Ra2 {[%clk 0:00:15]}  Nd5 {[%clk 0:00:03]} 58. Qd6 {[%clk 0:00:14]}  Nhf4 {[%clk 0:00:02]} 59. a8=Q {[%clk 0:00:14]}  Rxa8 {[%clk 0:00:02]} 60. Rxa8+ {[%clk 0:00:14]}  Kg7 {[%clk 0:00:02]} 61. Ra7+ {[%clk 0:00:14]}  Kh6 {[%clk 0:00:03]} 62. Nf7+ {[%clk 0:00:15]}  Kh5 {[%clk 0:00:03]} 63. Ne5 {[%clk 0:00:15]}  Qh4 {[%clk 0:00:03]} 64. Rxh7# {[%clk 0:00:14]} 1-0


[Site "https://www.chess.com"]

[Event "Titled Tuesday Blitz July 27 2021"]
[White "Lee, Qing Aun"]
[Black "Assaubayeva, Bibisara"]
[WhiteFideId "5804167"]
[BlackFideId "13708694"]
[WhiteElo "2526"]
[BlackElo "2711"]
[Result "1-0"]
[Round "07"]
[TimeControl "180+1"]
[Date "2021.07.27"]
[WhiteClock "0:00:07"]
[BlackClock "0:00:02"]

1. e4 {[%clk 0:03:00]}  c5 {[%clk 0:02:55]} 2. Nf3 {[%clk 0:02:58]}  d6 {[%clk 0:02:55]} 3. d4 {[%clk 0:02:59]}  cxd4 {[%clk 0:02:55]} 4. Nxd4 {[%clk 0:03:00]}  Nf6 {[%clk 0:02:56]} 5. Nc3 {[%clk 0:03:00]}  a6 {[%clk 0:02:57]} 6. Bg5 {[%clk 0:03:00]}  e6 {[%clk 0:02:56]} 7. f4 {[%clk 0:02:59]}  h6 {[%clk 0:02:56]} 8. Bh4 {[%clk 0:02:58]}  Qb6 {[%clk 0:02:57]} 9. Qd2 {[%clk 0:02:55]}  Qxb2 {[%clk 0:02:56]} 10. Rb1 {[%clk 0:02:55]}  Qa3 {[%clk 0:02:56]} 11. e5 {[%clk 0:02:52]}  dxe5 {[%clk 0:02:55]} 12. fxe5 {[%clk 0:02:50]}  Nfd7 {[%clk 0:02:50]} 13. Be2 {[%clk 0:02:45]}  Be7 {[%clk 0:02:19]} 14. Bg3 {[%clk 0:02:25]}  O-O {[%clk 0:02:06]} 15. Rb3 {[%clk 0:02:22]}  Qa5 {[%clk 0:02:05]} 16. O-O {[%clk 0:02:18]}  Nxe5 {[%clk 0:01:58]} 17. Qe3 {[%clk 0:02:07]}  Nbc6 {[%clk 0:01:55]} 18. Ncb5 {[%clk 0:02:04]}  axb5 {[%clk 0:01:34]} 19. Bxe5 {[%clk 0:02:03]}  Nxe5 {[%clk 0:01:31]} 20. Qxe5 {[%clk 0:02:03]}  b4 {[%clk 0:01:31]} 21. Bb5 {[%clk 0:01:54]}  f6 {[%clk 0:01:24]} 22. Qe4 {[%clk 0:01:31]}  Bc5 {[%clk 0:01:12]} 23. Bc4 {[%clk 0:01:02]}  Qb6 {[%clk 0:01:03]} 24. Rd3 {[%clk 0:01:01]}  Rd8 {[%clk 0:00:52]} 25. Rfd1 {[%clk 0:01:00]}  Kh8 {[%clk 0:00:49]} 26. Kh1 {[%clk 0:00:59]}  Bxd4 {[%clk 0:00:41]} 27. Rxd4 {[%clk 0:00:59]}  Rxd4 {[%clk 0:00:41]} 28. Rxd4 {[%clk 0:00:59]}  e5 {[%clk 0:00:41]} 29. Rd1 {[%clk 0:00:55]}  Be6 {[%clk 0:00:37]} 30. Bd3 {[%clk 0:00:53]}  Bg8 {[%clk 0:00:37]} 31. h3 {[%clk 0:00:40]}  Rxa2 {[%clk 0:00:28]} 32. Rb1 {[%clk 0:00:33]}  b3 {[%clk 0:00:14]} 33. Kh2 {[%clk 0:00:26]}  Qc5 {[%clk 0:00:10]} 34. cxb3 {[%clk 0:00:22]}  Qd5 {[%clk 0:00:10]} 35. Qg6 {[%clk 0:00:20]}  Rd2 {[%clk 0:00:07]} 36. Be4 {[%clk 0:00:20]}  Qd6 {[%clk 0:00:07]} 37. Rf1 {[%clk 0:00:19]}  Rd4 {[%clk 0:00:07]} 38. Re1 {[%clk 0:00:18]}  Qe7 {[%clk 0:00:06]} 39. Rc1 {[%clk 0:00:16]}  Qf7 {[%clk 0:00:06]} 40. Qf5 {[%clk 0:00:16]}  g6 {[%clk 0:00:06]} 41. Qf3 {[%clk 0:00:14]}  f5 {[%clk 0:00:06]} 42. Bxb7 {[%clk 0:00:13]}  Rb4 {[%clk 0:00:05]} 43. Bc6 {[%clk 0:00:10]}  Rxb3 {[%clk 0:00:05]} 44. Qf2 {[%clk 0:00:09]}  e4 {[%clk 0:00:05]} 45. Ba4 {[%clk 0:00:09]}  Rd3 {[%clk 0:00:05]} 46. Rc8 {[%clk 0:00:08]}  Kh7 {[%clk 0:00:05]} 47. Qc2 {[%clk 0:00:07]}  Qe7 {[%clk 0:00:04]} 48. Rc7 {[%clk 0:00:06]}  Qxc7+ {[%clk 0:00:02]} 49. Qxc7+ {[%clk 0:00:06]}  Kh8 {[%clk 0:00:03]} 50. Qe5+ {[%clk 0:00:07]}  Kh7 {[%clk 0:00:02]} 51. Be8 {[%clk 0:00:07]} 1-0


[Site "https://www.chess.com"]

[Event "Titled Tuesday Blitz July 27 2021"]
[White "Leiva, Gianmarco"]
[Black "Sliwicki, Damian"]
[WhiteFideId "3804399"]
[BlackFideId "1127128"]
[WhiteElo "2365"]
[BlackElo "2149"]
[Result "0-1"]
[Round "07"]
[TimeControl "180+1"]
[Date "2021.07.27"]
[WhiteClock "0:00:02"]
[BlackClock "0:00:21"]

1. e4 {[%clk 0:03:00]}  c5 {[%clk 0:02:49]} 2. Nf3 {[%clk 0:03:00]}  g6 {[%clk 0:02:45]} 3. d4 {[%clk 0:02:52]}  cxd4 {[%clk 0:02:45]} 4. Nxd4 {[%clk 0:02:53]}  Nc6 {[%clk 0:02:42]} 5. c4 {[%clk 0:02:52]}  Nf6 {[%clk 0:02:39]} 6. Nc3 {[%clk 0:02:51]}  Nxd4 {[%clk 0:02:39]} 7. Qxd4 {[%clk 0:02:50]}  d6 {[%clk 0:02:39]} 8. Be2 {[%clk 0:02:45]}  Bg7 {[%clk 0:02:38]} 9. Be3 {[%clk 0:02:46]}  O-O {[%clk 0:02:37]} 10. Qd2 {[%clk 0:02:46]}  a5 {[%clk 0:02:37]} 11. O-O {[%clk 0:02:38]}  a4 {[%clk 0:02:37]} 12. Rac1 {[%clk 0:02:36]}  Qa5 {[%clk 0:02:25]} 13. Rfd1 {[%clk 0:02:31]}  Be6 {[%clk 0:02:23]} 14. f3 {[%clk 0:02:26]}  Rfc8 {[%clk 0:02:18]} 15. Nb5 {[%clk 0:02:17]}  Qxd2 {[%clk 0:02:07]} 16. Rxd2 {[%clk 0:02:17]}  Nd7 {[%clk 0:01:55]} 17. h3 {[%clk 0:02:14]}  Ne5 {[%clk 0:01:18]} 18. Rdc2 {[%clk 0:02:13]}  f5 {[%clk 0:01:16]} 19. Nd4 {[%clk 0:02:08]}  Bd7 {[%clk 0:01:15]} 20. exf5 {[%clk 0:02:03]}  gxf5 {[%clk 0:01:16]} 21. Bg5 {[%clk 0:00:45]}  Kf7 {[%clk 0:01:10]} 22. Bf1 {[%clk 0:00:33]}  Nc6 {[%clk 0:01:03]} 23. Nb5 {[%clk 0:00:31]}  Nb4 {[%clk 0:00:57]} 24. Re2 {[%clk 0:00:31]}  Bxb5 {[%clk 0:00:48]} 25. Rxe7+ {[%clk 0:00:29]}  Kf8 {[%clk 0:00:45]} 26. cxb5 {[%clk 0:00:25]}  Rxc1 {[%clk 0:00:39]} 27. Rxb7 {[%clk 0:00:09]}  Bd4+ {[%clk 0:00:34]} 28. Kh2 {[%clk 0:00:08]}  Rxf1 {[%clk 0:00:33]} 29. Be7+ {[%clk 0:00:07]}  Kg8 {[%clk 0:00:30]} 30. Bxd6 {[%clk 0:00:08]}  Nd5 {[%clk 0:00:27]} 31. Rd7 {[%clk 0:00:08]}  f4 {[%clk 0:00:26]} 32. h4 {[%clk 0:00:05]}  Bf2 {[%clk 0:00:23]} 33. Ba3 {[%clk 0:00:03]}  Bg3+ {[%clk 0:00:20]} 34. Kh3 {[%clk 0:00:03]}  Rh1+ {[%clk 0:00:21]} 35. Kg4 {[%clk 0:00:03]}  Nf6+ {[%clk 0:00:21]} 36. Kf5 {[%clk 0:00:04]}  Nxd7 {[%clk 0:00:22]} 37. Be7 {[%clk 0:00:02]}  Rb8 {[%clk 0:00:20]} 38. Bd6 {[%clk 0:00:02]}  Rxb5+ {[%clk 0:00:20]} 39. Ke6 {[%clk 0:00:03]}  Nc5+ {[%clk 0:00:19]} 40. Ke7 {[%clk 0:00:04]}  Nd3 {[%clk 0:00:20]} 41. Kd7 {[%clk 0:00:03]}  Rxb2 {[%clk 0:00:20]} 42. a3 {[%clk 0:00:01]}  Rb3 {[%clk 0:00:20]} 43. h5 {[%clk 0:00:02]}  Ne1 {[%clk 0:00:19]} 44. Kc6 {[%clk 0:00:01]}  Nxg2 {[%clk 0:00:20]} 45. Bc5 {[%clk 0:00:01]}  Ne3 {[%clk 0:00:20]} 46. h6 {[%clk 0:00:01]}  Nf5 {[%clk 0:00:20]} 47. Kd7 {[%clk 0:00:02]}  Nxh6 {[%clk 0:00:20]} 48. Bb4 {[%clk 0:00:02]}  Nf7 {[%clk 0:00:21]} 0-1


[Site "https://www.chess.com"]

[Event "Titled Tuesday Blitz July 27 2021"]
[White "Madaminov, Mukhiddin"]
[Black "Moskalenko, Alexander"]
[WhiteFideId "14210703"]
[BlackFideId "4155351"]
[WhiteElo "1747"]
[BlackElo "2495"]
[Result "1-0"]
[Round "07"]
[TimeControl "180+1"]
[Date "2021.07.27"]
[WhiteClock "0:00:10"]
[BlackClock "0:00:03"]

1. e4 {[%clk 0:03:00]}  c6 {[%clk 0:02:54]} 2. Nf3 {[%clk 0:03:01]}  d5 {[%clk 0:02:54]} 3. Nc3 {[%clk 0:03:01]}  dxe4 {[%clk 0:02:54]} 4. Nxe4 {[%clk 0:03:02]}  Nf6 {[%clk 0:02:54]} 5. Nxf6+ {[%clk 0:03:02]}  exf6 {[%clk 0:02:54]} 6. Bc4 {[%clk 0:02:59]}  Bd6 {[%clk 0:02:55]} 7. O-O {[%clk 0:02:58]}  O-O {[%clk 0:02:54]} 8. h3 {[%clk 0:02:59]}  Nd7 {[%clk 0:02:50]} 9. d4 {[%clk 0:02:59]}  Re8 {[%clk 0:02:50]} 10. Re1 {[%clk 0:02:58]}  Rxe1+ {[%clk 0:02:49]} 11. Qxe1 {[%clk 0:02:58]}  Nb6 {[%clk 0:02:46]} 12. Bd3 {[%clk 0:02:50]}  Be6 {[%clk 0:02:38]} 13. b3 {[%clk 0:02:50]}  Nd5 {[%clk 0:02:35]} 14. c4 {[%clk 0:02:41]}  Nf4 {[%clk 0:02:35]} 15. Bxf4 {[%clk 0:02:39]}  Bxf4 {[%clk 0:02:36]} 16. Qe4 {[%clk 0:02:40]}  Bc7 {[%clk 0:02:35]} 17. Qxh7+ {[%clk 0:02:39]}  Kf8 {[%clk 0:02:35]} 18. Re1 {[%clk 0:02:35]}  Ke7 {[%clk 0:01:28]} 19. Qxg7 {[%clk 0:02:29]}  Qg8 {[%clk 0:01:28]} 20. Qxg8 {[%clk 0:02:29]}  Rxg8 {[%clk 0:01:29]} 21. d5 {[%clk 0:02:30]}  cxd5 {[%clk 0:01:29]} 22. cxd5 {[%clk 0:02:31]}  Rd8 {[%clk 0:01:30]} 23. Bc4 {[%clk 0:01:20]}  b5 {[%clk 0:01:28]} 24. Bxb5 {[%clk 0:01:14]}  Rxd5 {[%clk 0:01:27]} 25. Bc4 {[%clk 0:01:14]}  Ra5 {[%clk 0:01:24]} 26. a4 {[%clk 0:00:56]}  Kd7 {[%clk 0:01:24]} 27. Bxe6+ {[%clk 0:00:45]}  fxe6 {[%clk 0:01:25]} 28. Nd4 {[%clk 0:00:43]}  Be5 {[%clk 0:01:21]} 29. Nb5 {[%clk 0:00:37]}  a6 {[%clk 0:01:15]} 30. Na3 {[%clk 0:00:37]}  Rc5 {[%clk 0:01:16]} 31. Nc4 {[%clk 0:00:38]}  Bc7 {[%clk 0:01:16]} 32. Rd1+ {[%clk 0:00:38]}  Ke7 {[%clk 0:01:16]} 33. Kf1 {[%clk 0:00:37]}  Rg5 {[%clk 0:01:12]} 34. g3 {[%clk 0:00:37]}  f5 {[%clk 0:01:12]} 35. Ke2 {[%clk 0:00:37]}  Rh5 {[%clk 0:01:12]} 36. h4 {[%clk 0:00:37]}  f4 {[%clk 0:01:13]} 37. Kf3 {[%clk 0:00:28]}  Rh8 {[%clk 0:01:12]} 38. Rh1 {[%clk 0:00:23]}  Rb8 {[%clk 0:01:05]} 39. Rb1 {[%clk 0:00:21]}  fxg3 {[%clk 0:00:58]} 40. fxg3 {[%clk 0:00:22]}  Rf8+ {[%clk 0:00:58]} 41. Ke4 {[%clk 0:00:08]}  Bxg3 {[%clk 0:00:56]} 42. Rg1 {[%clk 0:00:09]}  Bxh4 {[%clk 0:00:50]} 43. Rg7+ {[%clk 0:00:10]}  Kf6 {[%clk 0:00:50]} 44. Ra7 {[%clk 0:00:09]}  Rb8 {[%clk 0:00:49]} 45. Ne5 {[%clk 0:00:07]}  Rb4+ {[%clk 0:00:46]} 46. Nc4 {[%clk 0:00:08]}  Rxb3 {[%clk 0:00:45]} 47. Rxa6 {[%clk 0:00:09]}  Rb4 {[%clk 0:00:43]} 48. Kd3 {[%clk 0:00:09]}  Bf2 {[%clk 0:00:41]} 49. a5 {[%clk 0:00:09]}  Bg1 {[%clk 0:00:23]} 50. Kc3 {[%clk 0:00:09]}  Rb1 {[%clk 0:00:22]} 51. Kc2 {[%clk 0:00:08]}  Ra1 {[%clk 0:00:20]} 52. Ra8 {[%clk 0:00:08]}  e5 {[%clk 0:00:18]} 53. Re8 {[%clk 0:00:07]}  Bd4 {[%clk 0:00:17]} 54. Kb3 {[%clk 0:00:07]}  Kf5 {[%clk 0:00:15]} 55. Kb4 {[%clk 0:00:07]}  Rb1+ {[%clk 0:00:15]} 56. Ka4 {[%clk 0:00:07]}  Ra1+ {[%clk 0:00:16]} 57. Kb5 {[%clk 0:00:07]}  Rb1+ {[%clk 0:00:16]} 58. Kc6 {[%clk 0:00:08]}  Rc1 {[%clk 0:00:17]} 59. Kd5 {[%clk 0:00:08]}  Ra1 {[%clk 0:00:16]} 60. Nd6+ {[%clk 0:00:07]}  Kf4 {[%clk 0:00:16]} 61. Nc4 {[%clk 0:00:08]}  Kf5 {[%clk 0:00:12]} 62. Re6 {[%clk 0:00:08]}  Rb1 {[%clk 0:00:10]} 63. Re8 {[%clk 0:00:08]}  Rb5+ {[%clk 0:00:09]} 64. Kd6 {[%clk 0:00:07]}  Rb1 {[%clk 0:00:08]} 65. a6 {[%clk 0:00:07]}  Ra1 {[%clk 0:00:08]} 66. Ra8 {[%clk 0:00:08]}  e4 {[%clk 0:00:07]} 67. Kd5 {[%clk 0:00:08]}  e3 {[%clk 0:00:07]} 68. Kxd4 {[%clk 0:00:08]}  e2 {[%clk 0:00:07]} 69. Ne3+ {[%clk 0:00:08]}  Kf4 {[%clk 0:00:05]} 70. Nc2 {[%clk 0:00:09]}  Rd1+ {[%clk 0:00:05]} 71. Kc3 {[%clk 0:00:10]}  Rc1 {[%clk 0:00:06]} 72. Re8 {[%clk 0:00:10]}  Kf3 {[%clk 0:00:02]} 73. a7 {[%clk 0:00:11]}  Ra1 {[%clk 0:00:02]} 74. Nxa1 {[%clk 0:00:10]}  e1=Q+ {[%clk 0:00:03]} 75. Rxe1 {[%clk 0:00:10]} 1-0


[Site "https://www.chess.com"]

[Event "Titled Tuesday Blitz July 27 2021"]
[White "Mohandesi, Shahin"]
[Black "Trent, Lawrence"]
[WhiteFideId "12501247"]
[BlackFideId "408638"]
[WhiteElo "1993"]
[BlackElo "2474"]
[Result "0-1"]
[Round "07"]
[TimeControl "180+1"]
[Date "2021.07.27"]
[WhiteClock "0:00:58"]
[BlackClock "0:02:24"]

1. Nf3 {[%clk 0:03:00]}  Nc6 {[%clk 0:02:59]} 2. c4 {[%clk 0:03:00]}  e5 {[%clk 0:02:59]} 3. d3 {[%clk 0:02:59]}  f5 {[%clk 0:02:58]} 4. Nc3 {[%clk 0:02:58]}  Nf6 {[%clk 0:02:58]} 5. g3 {[%clk 0:02:58]}  Bb4 {[%clk 0:02:59]} 6. Bd2 {[%clk 0:02:57]}  O-O {[%clk 0:02:59]} 7. Bg2 {[%clk 0:02:57]}  d6 {[%clk 0:03:00]} 8. a3 {[%clk 0:02:57]}  Bxc3 {[%clk 0:03:00]} 9. Bxc3 {[%clk 0:02:58]}  Qe8 {[%clk 0:03:01]} 10. e3 {[%clk 0:02:54]}  f4 {[%clk 0:03:01]} 11. Qd2 {[%clk 0:02:36]}  fxe3 {[%clk 0:02:58]} 12. fxe3 {[%clk 0:02:36]}  e4 {[%clk 0:02:57]} 13. Nd4 {[%clk 0:02:21]}  Ne5 {[%clk 0:02:54]} 14. dxe4 {[%clk 0:02:09]}  Nxc4 {[%clk 0:02:50]} 15. Qd3 {[%clk 0:02:09]}  Ne5 {[%clk 0:02:50]} 16. Qc2 {[%clk 0:02:08]}  Nfg4 {[%clk 0:02:48]} 17. Bd2 {[%clk 0:01:59]}  Rf2 {[%clk 0:02:38]} 18. Bf1 {[%clk 0:01:40]}  c5 {[%clk 0:02:28]} 19. h3 {[%clk 0:01:04]}  cxd4 {[%clk 0:02:26]} 20. exd4 {[%clk 0:00:59]}  Nf3+ {[%clk 0:02:25]} 21. Kd1 {[%clk 0:00:58]}  Rxd2+ {[%clk 0:02:23]} 22. Qxd2 {[%clk 0:00:58]}  Nxd2 {[%clk 0:02:24]} 0-1


[Site "https://www.chess.com"]

[Event "Titled Tuesday Blitz July 27 2021"]
[White "Moon_stone123"]
[Black "Dvirnyy, Danyyil"]
[BlackFideId "817570"]
[WhiteElo "2406"]
[BlackElo "2531"]
[Result "0-1"]
[Round "07"]
[TimeControl "180+1"]
[Date "2021.07.27"]
[WhiteClock "0:00:01"]
[BlackClock "0:00:25"]

1. Nf3 {[%clk 0:03:00]}  Nf6 {[%clk 0:02:59]} 2. g3 {[%clk 0:03:00]}  g6 {[%clk 0:02:57]} 3. Bg2 {[%clk 0:03:00]}  Bg7 {[%clk 0:02:57]} 4. O-O {[%clk 0:02:59]}  d5 {[%clk 0:02:58]} 5. d4 {[%clk 0:02:56]}  O-O {[%clk 0:02:57]} 6. Bf4 {[%clk 0:02:55]}  h6 {[%clk 0:02:51]} 7. c3 {[%clk 0:02:41]}  Nbd7 {[%clk 0:02:36]} 8. Ne5 {[%clk 0:02:39]}  Nb6 {[%clk 0:02:24]} 9. Nd2 {[%clk 0:02:33]}  a5 {[%clk 0:02:25]} 10. c4 {[%clk 0:02:20]}  dxc4 {[%clk 0:02:24]} 11. Ndxc4 {[%clk 0:02:19]}  Nxc4 {[%clk 0:02:24]} 12. Nxc4 {[%clk 0:02:19]}  Be6 {[%clk 0:02:23]} 13. Rc1 {[%clk 0:02:12]}  c6 {[%clk 0:02:23]} 14. Be5 {[%clk 0:02:06]}  a4 {[%clk 0:02:18]} 15. e3 {[%clk 0:02:03]}  Bd5 {[%clk 0:02:16]} 16. Qe2 {[%clk 0:01:57]}  Bxg2 {[%clk 0:02:16]} 17. Kxg2 {[%clk 0:01:57]}  Qd5+ {[%clk 0:02:16]} 18. Kg1 {[%clk 0:01:54]}  Ra6 {[%clk 0:01:50]} 19. a3 {[%clk 0:01:47]}  h5 {[%clk 0:01:46]} 20. h4 {[%clk 0:01:46]}  Ng4 {[%clk 0:01:41]} 21. Bxg7 {[%clk 0:01:45]}  Kxg7 {[%clk 0:01:42]} 22. Rfd1 {[%clk 0:01:40]}  Rd8 {[%clk 0:01:41]} 23. e4 {[%clk 0:01:33]}  Qb5 {[%clk 0:01:41]} 24. f3 {[%clk 0:01:28]}  Nf6 {[%clk 0:01:40]} 25. Kf2 {[%clk 0:01:23]}  Raa8 {[%clk 0:01:24]} 26. Ne3 {[%clk 0:01:14]}  Qb6 {[%clk 0:01:21]} 27. Rc4 {[%clk 0:01:11]}  Ne8 {[%clk 0:01:16]} 28. Qd2 {[%clk 0:01:02]}  Nc7 {[%clk 0:01:13]} 29. Rc5 {[%clk 0:00:52]}  Ne6 {[%clk 0:01:03]} 30. Rc4 {[%clk 0:00:50]}  Rd7 {[%clk 0:00:59]} 31. Rb4 {[%clk 0:00:50]}  Qa7 {[%clk 0:00:59]} 32. Qc3 {[%clk 0:00:45]}  Kg8 {[%clk 0:00:57]} 33. Ke2 {[%clk 0:00:28]}  Rad8 {[%clk 0:00:57]} 34. d5 {[%clk 0:00:27]}  Nc5 {[%clk 0:00:48]} 35. Rc4 {[%clk 0:00:21]}  Nb3 {[%clk 0:00:46]} 36. Rb4 {[%clk 0:00:21]}  c5 {[%clk 0:00:35]} 37. Rc4 {[%clk 0:00:19]}  b5 {[%clk 0:00:34]} 38. Nf5 {[%clk 0:00:07]}  gxf5 {[%clk 0:00:34]} 39. Qe3 {[%clk 0:00:07]}  Qb6 {[%clk 0:00:29]} 40. d6 {[%clk 0:00:05]}  Rxd6 {[%clk 0:00:25]} 41. Qg5+ {[%clk 0:00:04]}  Rg6 {[%clk 0:00:25]} 42. Rxd8+ {[%clk 0:00:03]}  Qxd8 {[%clk 0:00:25]} 43. Qxf5 {[%clk 0:00:02]}  bxc4 {[%clk 0:00:25]} 44. Qxg6+ {[%clk 0:00:01]}  fxg6 {[%clk 0:00:25]} 0-1


[Site "https://www.chess.com"]